bitfinex-derivatives/quotes_SOLF0:USTF0_20240910
["timestamp","ask_amount","ask_price","bid_price","bid_amount"]
[1726008073709,15.82700464,135.95,135.94,3.6778]
[1726008075619,11.31,135.99,135.94,3.6778]
[1726008077826,1.388,136.0,135.94,3.6778]
[1726008078028,11.31,135.99,135.92,11.31]
[1726008078226,11.31,135.98,135.89,1.3524]
[1726008078430,11.31,135.97,135.93,3.678]
[1726008078619,11.31,135.97,135.91,11.31]
[1726008079027,11.31,135.97,135.92,3.6783]
[1726008079428,11.31,135.97,135.91,11.31]
[1726008080023,11.31,135.97,135.93,3.6781]
[1726008081930,11.31,135.97,135.94,3.6778]
[1726008082325,11.31,135.98,135.93,11.31]
[1726008082528,12.647,135.99,135.93,11.31]
[1726008083326,12.647,135.99,135.89,1.3524]
[1726008083632,11.31,135.98,135.95,3.6774]
[1726008083833,11.31,135.98,135.92,11.31]
[1726008084035,1.388,136.0,135.95,11.31]
[1726008085330,1.388,136.0,135.96,3.6771]
[1726008086435,1.388,136.0,135.97,3.677]
[1726008086634,1.388,136.0,135.95,11.31]
[1726008087131,1.388,136.0,135.97,3.6769]
[1726008088837,12.698,136.0,135.97,3.6769]
[1726008090739,12.698,136.0,135.96,3.6772]
[1726008093037,12.698,136.0,135.97,3.677]
[1726008093538,11.31,136.0,135.97,3.677]
[1726008098545,1.2763,136.01,135.95,14.92904653]
[1726008098752,11.31,136.03,135.97,11.31]
[1726008098947,1.3226,136.05,135.95,3.61904653]
[1726008098948,11.31,136.04,135.98,11.31]
[1726008099547,1.3226,136.05,135.98,11.31]
[1726008099747,11.31,136.04,135.98,11.31]
[1726008100548,11.31,136.03,135.97,11.31]
[1726008100952,11.31,136.03,135.98,3.6767]
[1726008103253,11.31,136.01,135.97,3.677]
[1726008107849,11.31,136.01,135.95,14.92904653]
[1726008108052,11.31,136.01,135.98,3.6767]
[1726008110751,11.31,136.03,135.99,3.6765]
[1726008112260,1.3226,136.05,135.98,11.31]
[1726008112456,1.3226,136.05,135.99,11.31]
[1726008112658,1.3226,136.05,135.95,10.97414653]
[1726008112659,1.3226,136.05,136.0,11.31]
[1726008112865,1.3226,136.05,136.02,3.6755]
[1726008113957,12.6326,136.05,136.02,3.6755]
[1726008114358,2.7084,136.06,136.02,3.6755]
[1726008114558,14.0184,136.06,136.02,3.6755]
[1726008115270,14.0184,136.06,136.0,11.31]
[1726008115271,14.0184,136.06,136.03,3.6754]
[1726008115462,2.7084,136.06,136.03,3.6754]
[1726008116464,2.7084,136.06,136.02,3.6756]
[1726008116760,11.31,136.05,136.02,3.6756]
[1726008123675,2.7084,136.06,136.01,3.6759]
[1726008123875,11.31,136.03,136.01,3.6759]
[1726008124374,2.7084,136.06,136.01,3.6759]
[1726008124667,11.31,136.04,136.01,3.6759]
[1726008125265,11.31,136.04,136.02,3.6756]
[1726008125464,2.7084,136.06,136.02,3.6756]
[1726008125667,11.31,136.05,136.02,3.6756]
[1726008128978,11.31,136.04,136.02,3.6756]
[1726008129179,11.31,136.03,135.97,11.31]
[1726008129378,11.31,136.04,135.97,11.31]
[1726008129571,11.31,136.04,135.95,10.97414653]
[1726008129572,11.31,136.04,135.98,11.31]
[1726008129769,11.31,136.04,136.01,3.6757]
[1726008129975,11.31,136.04,135.95,10.97414653]
[1726008130180,11.31,136.04,135.97,3.6769]
[1726008130374,2.7084,136.06,135.95,3.61904653]
[1726008130375,11.31,136.02,135.95,3.61904653]
[1726008130675,11.31,136.02,135.95,11.31]
[1726008130877,11.31,136.02,135.99,3.6764]
[1726008131570,2.7084,136.06,136.0,3.6761]
[1726008131769,11.31,136.02,136.0,3.6761]
[1726008132174,2.7084,136.06,136.0,3.6761]
[1726008132381,11.31,136.02,136.0,3.6761]
[1726008132573,2.7084,136.06,136.01,3.6759]
[1726008132780,2.7084,136.06,135.99,11.31]
[1726008133083,11.31,136.04,135.94,8.7193]
[1726008133287,11.31,136.04,135.97,11.31]
[1726008133581,11.31,136.04,135.98,3.67617864]
[1726008133775,11.31,136.04,136.0,3.6761]
[1726008133975,1.3367,136.06,135.96,11.31]
[1726008133976,11.31,136.03,135.96,11.31]
[1726008134187,11.31,136.03,135.97,3.73831848]
[1726008134378,11.31,136.03,135.99,3.6763]
[1726008135787,11.31,136.0,135.94,1.3638]
[1726008135985,11.31,136.0,135.94,12.6738]
[1726008136182,11.31,136.0,135.96,3.6772]
[1726008136587,11.31,135.97,135.8,14.7262]
[1726008136787,11.31,135.97,135.91,11.31]
[1726008137291,11.31,135.97,135.94,3.6777]
[1726008138788,11.31,135.95,135.9,11.31]
[1726008138990,11.31,135.94,135.86,1.39]
[1726008139186,11.31,135.94,135.88,11.31]
[1726008139383,11.31,135.94,135.89,3.62108849]
[1726008140491,11.31,135.94,135.88,11.31]
[1726008140893,11.31,135.94,135.88,14.98367996]
[1726008141095,11.31,135.94,135.81,7.3628]
[1726008141394,11.31,135.92,135.82,3.9195]
[1726008141599,228.0344,136.01,135.83,3.67392795]
[1726008141600,11.31,135.89,135.83,3.67392795]
[1726008141791,11.31,135.89,135.83,14.98392795]
[1726008142295,11.31,135.91,135.84,11.31]
[1726008142494,1.3966,135.93,135.88,11.31]
[1726008143288,1.3966,135.93,135.88,14.9892]
[1726008143494,2.795,136.0,135.89,11.31]
[1726008143695,2.795,136.0,135.82,7.66259463]
[1726008143696,11.31,135.97,135.9,11.31]
[1726008143996,11.31,135.97,135.92,3.6782]
[1726008144294,11.31,135.97,135.9,11.31]
[1726008144484,11.31,135.97,135.91,3.6785]
[1726008144691,11.31,135.95,135.82,7.66259463]
[1726008144886,1.3874,135.99,135.88,3.6793]
[1726008145197,1.3874,135.99,135.88,11.31]
[1726008145198,11.31,135.94,135.88,11.31]
[1726008146097,11.31,135.94,135.82,7.66259463]
[1726008146098,17.68,135.96,135.86,17.68]
[1726008146300,1.3047,135.95,135.89,3.679]
[1726008146700,1.3047,135.95,135.91,3.6785]
[1726008146901,1.3047,135.95,135.86,17.68]
[1726008147603,1.3047,135.95,135.88,17.68]
[1726008148108,17.68,135.98,135.88,17.68]
[1726008148808,17.68,135.98,135.91,3.6787]
[1726008149909,17.68,135.98,135.92,3.6784]
[1726008150408,17.68,135.98,135.88,17.68]
[1726008150610,17.68,135.98,135.9,3.6789]
[1726008156413,17.68,135.96,135.86,17.68]
[1726008156806,17.68,135.96,135.89,3.679]
[1726008157209,1.4024,135.95,135.89,3.679]
[1726008158216,1.4024,135.95,135.9,3.6789]
[1726008160308,1.4024,135.95,135.89,3.6791]
[1726008162418,1.4024,135.95,135.86,17.68]
[1726008163019,1.4024,135.95,135.91,3.6785]
[1726008163413,1.4024,135.95,135.92,3.6784]
[1726008163724,1.4024,135.95,135.88,17.68]
[1726008164112,17.68,135.98,135.88,17.68]
[1726008164713,17.68,135.98,135.92,3.6783]
[1726008165209,2.7316,135.99,135.93,3.678]
[1726008167324,2.7316,135.99,135.92,3.6782]
[1726008168123,11.31,135.97,135.92,3.6782]
[1726008169214,11.31,135.97,135.91,11.31]
[1726008170221,11.31,135.97,135.91,14.9885]
[1726008170417,11.31,135.97,135.91,11.31]
[1726008171323,11.31,135.97,135.92,3.6783]
[1726008174030,11.31,135.97,135.91,14.9886]
[1726008174824,11.31,135.97,135.92,3.6784]
[1726008176125,11.31,135.97,135.91,14.9885]
[1726008176519,14.0416,135.99,135.94,3.6777]
[1726008176724,2.7316,135.99,135.94,11.31]
[1726008177726,2.7316,135.99,135.94,14.9877]
[1726008179226,2.7316,135.99,135.94,11.31]
[1726008179530,2.7316,135.99,135.92,11.31]
[1726008179736,14.0416,135.99,135.92,11.31]
[1726008180023,14.0416,135.99,135.89,3.67576749]
[1726008180024,14.0416,135.99,135.94,3.6777]
[1726008180327,11.31,135.98,135.92,11.31]
[1726008180832,1.3874,136.01,135.95,11.31]
[1726008181027,11.31,136.04,135.97,11.31]
[1726008181329,11.31,136.04,135.98,11.31]
[1726008181526,11.31,136.05,135.98,11.31]
[1726008182325,11.31,136.03,135.97,11.31]
[1726008182723,11.31,136.0,135.93,2.7975]
[1726008182925,11.31,136.0,135.94,11.31]
[1726008183524,4.0148,136.07,135.98,11.31]
[1726008183729,11.31,136.05,135.98,11.31]
[1726008184428,11.31,136.05,136.0,3.6762]
[1726008184732,11.31,136.04,135.98,11.31]
[1726008185135,11.31,136.04,135.98,14.9865]
[1726008185728,11.31,136.04,135.99,3.6764]
[1726008188626,11.31,136.02,135.95,11.31]
[1726008189028,4.0148,136.07,135.97,11.31]
[1726008189228,11.31,136.03,135.98,11.31]
[1726008190135,11.31,136.03,135.98,14.9866]
[1726008190334,11.31,136.03,135.98,11.31]
[1726008191332,11.31,136.03,135.99,3.6765]
[1726008192329,4.0148,136.07,135.98,11.31]
[1726008192529,4.0148,136.07,135.93,2.7975]
[1726008192530,11.31,136.06,136.01,3.6758]
[1726008193037,11.31,136.04,136.0,3.6761]
[1726008194540,11.31,136.04,135.99,3.6764]
[1726008196836,11.31,136.02,135.98,3.6766]
[1726008197735,11.31,136.02,135.97,3.677]
[1726008197937,4.0148,136.07,135.95,11.31]
[1726008198137,11.31,136.02,135.97,11.31]
[1726008198845,11.31,136.01,135.93,2.7975]
[1726008199046,11.31,136.01,135.94,11.31]
[1726008207147,11.31,136.01,135.96,11.31]
[1726008207954,4.0148,136.07,135.97,11.31]
[1726008208146,11.31,136.04,135.97,11.31]
[1726008208962,11.31,136.04,135.98,3.6766]
[1726008209550,11.31,136.04,135.99,3.6765]
[1726008209944,11.31,136.04,135.98,14.9867]
[1726008212252,11.31,136.04,135.99,3.6765]
[1726008213152,11.31,136.04,135.98,3.6766]
[1726008213558,11.31,136.02,135.98,3.6766]
[1726008215551,11.31,135.99,135.92,1.3909]
[1726008215751,11.31,135.98,135.92,12.7009]
[1726008216559,11.31,135.97,135.89,2.7226]
[1726008216753,11.31,135.97,135.9,15.07020079]
[1726008217354,3.9489,136.01,135.91,11.31]
[1726008217557,11.31,135.98,135.91,11.31]
[1726008218161,11.31,135.98,135.91,15.0178001]
[1726008218662,11.31,135.98,135.93,11.31]
[1726008225162,11.31,135.98,135.93,14.988]
[1726008227663,11.31,135.97,135.91,3.6424876]
[1726008227867,11.31,135.96,135.91,11.31]
[1726008229258,3.9489,136.01,135.91,11.31]
[1726008229463,11.31,136.0,135.95,11.31]
[1726008229770,11.31,136.0,135.9,5.14790064]
[1726008229771,15.2589,136.01,135.9,5.14790064]
[1726008229958,15.2589,136.01,135.94,11.31]
[1726008230161,3.9489,136.01,135.94,11.31]
[1726008230360,3.9489,136.01,135.96,11.31]
[1726008232273,11.31,136.0,135.96,11.31]
[1726008232475,2.546,136.01,135.97,11.31]
[1726008232776,11.31,136.05,135.98,11.31]
[1726008233166,11.31,136.05,135.98,14.9866]
[1726008233370,11.31,136.05,135.98,11.31]
[1726008233670,11.31,136.02,135.97,14.9869]
[1726008233972,11.31,136.02,135.97,11.31]
[1726008234168,11.31,136.02,135.9,5.14790064]
[1726008234169,11.31,136.0,135.9,5.14790064]
[1726008234374,11.31,136.0,135.94,11.31]
[1726008234965,11.31,136.0,135.95,3.6774]
[1726008235362,11.31,136.0,135.9,5.14790064]
[1726008235363,1.3338,136.06,135.99,3.6765]
[1726008235562,1.3338,136.06,135.9,5.14790064]
[1726008235563,11.31,136.05,135.9,1.406]
[1726008235767,11.31,136.05,135.99,11.31]
[1726008236171,1.3338,136.06,135.99,11.31]
[1726008236371,11.31,136.05,135.99,14.9864]
[1726008236576,11.31,136.02,135.9,5.15627583]
[1726008236771,11.31,136.02,135.96,11.31]
[1726008236977,11.31,136.02,135.97,3.6768]
[1726008237175,11.31,136.02,135.98,11.31]
[1726008237878,11.31,136.01,135.96,11.31]
[1726008238465,11.31,136.01,135.96,14.9872]
[1726008239370,11.31,136.0,135.95,3.6775]
[1726008240265,11.31,136.0,135.96,3.6773]
[1726008240670,11.31,136.0,135.94,11.31]
[1726008240872,11.31,136.0,135.95,3.6774]
[1726008243478,11.31,136.0,135.96,3.6773]
[1726008243880,11.31,136.01,135.96,3.6773]
[1726008246083,11.31,136.0,135.94,11.31]
[1726008247179,11.31,136.0,135.95,3.6774]
[1726008249181,11.31,136.0,135.96,3.6773]
[1726008250486,11.31,136.0,135.95,3.6775]
[1726008250882,11.31,135.97,135.91,11.31]
[1726008251487,11.31,135.97,135.92,3.6782]
[1726008252186,11.31,135.97,135.91,11.31]
[1726008252187,11.31,135.97,135.91,14.9885]
[1726008252393,11.31,135.97,135.91,11.31]
[1726008252596,11.31,135.96,135.91,11.31]
[1726008253488,11.31,135.96,135.92,3.6784]
[1726008253792,11.31,135.96,135.91,11.31]
[1726008253994,11.31,135.96,135.91,14.9885]
[1726008255891,11.31,135.96,135.92,3.6784]
[1726008258194,3.9451,135.99,135.93,3.6781]
[1726008258496,11.31,135.98,135.93,3.6781]
[1726008259091,11.31,135.98,135.92,14.9883]
[1726008259287,11.31,135.98,135.92,11.31]
[1726008260289,11.31,135.98,135.93,3.6781]
[1726008260490,11.31,135.98,135.92,11.31]
[1726008262295,11.31,135.98,135.94,3.6777]
[1726008264591,11.31,135.98,135.93,3.678]
[1726008266301,11.31,135.98,135.92,14.9883]
[1726008280609,11.31,135.97,135.91,14.9885]
[1726008281915,11.31,135.97,135.92,3.6784]
[1726008283511,11.31,135.97,135.91,3.6786]
[1726008284317,11.31,135.95,135.91,3.6786]
[1726008286016,11.31,135.95,135.9,14.9888]
[1726008286607,3.9451,135.99,135.9,3.6788]
[1726008286608,11.31,135.94,135.9,3.6788]
[1726008287317,11.31,135.94,135.89,3.6791]
[1726008291215,11.31,135.93,135.87,14.91533437]
[1726008291523,11.31,135.93,135.87,11.31]
[1726008291723,11.31,135.93,135.87,14.9896]
[1726008294316,11.31,135.93,135.87,3.6796]
[1726008295415,11.31,135.91,135.86,3.6799]
[1726008297617,120.25448402,135.99,135.84,14.9906]
[1726008297618,11.31,135.9,135.84,14.9906]
[1726008298123,11.31,135.9,135.84,18.64914556]
[1726008303319,2.708,135.91,135.86,11.31]
[1726008303522,11.31,135.94,135.87,11.31]
[1726008304820,11.31,135.91,135.85,11.31]
[1726008305126,11.31,135.91,135.86,3.6799]
[1726008306122,11.31,135.92,135.87,14.9897]
[1726008308222,11.31,135.92,135.88,3.6794]
[1726008310831,11.31,135.92,135.87,11.31]
[1726008312235,11.31,135.92,135.88,3.6793]
[1726008312737,11.31,135.92,135.87,11.31]
[1726008312938,11.31,135.95,135.89,11.31]
[1726008313533,11.31,135.95,135.9,3.6787]
[1726008315132,11.31,135.94,135.9,3.6787]
[1726008317332,11.31,135.94,135.88,11.31]
[1726008318238,11.31,135.94,135.88,14.9893]
[1726008321340,11.31,135.94,135.89,14.9892]
[1726008323040,11.31,135.94,135.91,3.6785]
[1726008323241,11.31,135.95,135.89,11.31]
[1726008324237,11.31,135.95,135.9,3.6788]
[1726008325735,11.31,135.95,135.91,3.6787]
[1726008328349,11.31,135.95,135.9,3.6788]
[1726008333841,3.9689,135.98,135.86,7.80079146]
[1726008334046,11.31,135.94,135.88,11.31]
[1726008335242,11.31,135.94,135.88,14.9893]
[1726008335646,11.31,135.93,135.86,7.80079146]
[1726008335849,11.31,135.93,135.86,15.06699146]
[1726008336853,11.31,135.91,135.86,18.74689146]
[1726008337158,11.31,135.91,135.86,15.06699146]
[1726008337353,11.31,135.91,135.87,3.6797]
[1726008338960,3.9689,135.98,135.88,3.6795]
[1726008338961,11.31,135.93,135.88,3.6795]
[1726008343062,11.31,135.94,135.88,3.6795]
[1726008343652,11.31,135.94,135.89,3.6791]
[1726008344067,11.31,135.94,135.89,14.9891]
[1726008348463,11.31,135.94,135.88,3.6794]
[1726008348869,11.31,135.94,135.87,11.31]
[1726008349173,11.31,135.94,135.89,3.679]
[1726008351560,11.31,135.94,135.88,3.6793]
[1726008352374,11.31,135.92,135.87,3.6796]
[1726008354581,11.31,135.92,135.87,11.31]
[1726008355069,11.31,135.92,135.88,3.6793]
[1726008356075,11.31,135.92,135.87,14.9896]
[1726008357278,11.31,135.92,135.86,3.6798]
[1726008357467,11.31,135.92,135.82,2.7081]
[1726008357468,11.31,135.89,135.82,2.7081]
[1726008357669,11.31,135.89,135.84,11.31]
[1726008357865,11.31,135.89,135.83,18.62405701]
[1726008358770,11.31,135.89,135.84,3.6805]
[1726008359172,11.31,135.89,135.83,3.63325701]
[1726008359371,11.31,135.89,135.83,14.94325701]
[1726008359579,11.31,135.89,135.83,18.62395701]
[1726008359981,11.31,135.89,135.83,7.31395701]
[1726008360279,11.31,135.88,135.83,18.62395701]
[1726008360873,11.31,135.89,135.84,14.9906]
[1726008362276,1.3389,135.92,135.84,11.31]
[1726008362482,1.3389,135.92,135.88,11.31]
[1726008362780,2.6722,135.93,135.88,14.9894]
[1726008362971,13.9822,135.93,135.87,11.31]
[1726008363984,13.9822,135.93,135.87,14.9897]
[1726008366072,11.31,135.92,135.87,14.9897]
[1726008369882,11.31,135.92,135.87,11.31]
[1726008370283,11.31,135.91,135.84,1.3826]
[1726008370583,11.31,135.91,135.84,12.6926]
[1726008370985,11.31,135.91,135.85,3.6802]
[1726008371278,12.6824,135.92,135.85,11.31]
[1726008371687,12.6824,135.92,135.86,3.6798]
[1726008372982,1.3724,135.92,135.87,3.6797]
[1726008373181,12.6824,135.92,135.87,3.6797]
[1726008374684,11.31,135.91,135.86,3.6799]
[1726008375680,11.31,135.91,135.87,3.6797]
[1726008376082,11.31,135.91,135.85,11.31]
[1726008376083,11.31,135.91,135.86,3.6799]
[1726008376486,11.31,135.91,135.85,11.31]
[1726008376681,11.31,135.91,135.86,3.6798]
[1726008376990,1.3724,135.92,135.87,11.31]
[1726008376991,12.6824,135.92,135.87,11.31]
[1726008378085,12.6824,135.92,135.87,14.9897]
[1726008379389,11.31,135.91,135.86,3.68]
[1726008381484,11.31,135.91,135.87,3.6797]
[1726008382791,11.31,135.91,135.86,3.6799]
[1726008384588,11.31,135.91,135.85,14.9902]
[1726008385190,11.31,135.91,135.86,3.68]
[1726008388195,11.31,135.91,135.87,3.6797]
[1726008388387,11.31,135.91,135.83,3.63325701]
[1726008388595,11.31,135.91,135.84,11.31]
[1726008388895,11.31,135.91,135.84,15.07398704]
[1726008389091,11.31,135.91,135.86,3.68]
[1726008389398,11.31,135.91,135.84,15.07398704]
[1726008389897,11.31,135.91,135.85,3.6802]
[1726008390797,11.31,135.91,135.86,3.68]
[1726008391099,11.31,135.91,135.86,14.99]
[1726008393988,11.31,135.91,135.85,3.6802]
[1726008397002,11.31,135.91,135.86,3.68]
[1726008397197,2.6722,135.93,135.87,11.31]
[1726008397603,11.31,135.94,135.88,11.31]
[1726008398991,11.31,135.94,135.88,14.9893]
[1726008401201,11.31,135.93,135.88,3.6793]
[1726008404306,11.31,135.93,135.87,14.9896]
[1726008405301,11.31,135.92,135.87,14.9896]
[1726008405501,11.31,135.92,135.86,3.6799]
[1726008406305,11.31,135.92,135.86,7.39732595]
[1726008410012,11.31,135.92,135.85,14.9902]
[1726008410511,11.31,135.92,135.85,18.75399258]
[1726008411109,11.31,135.92,135.86,3.6798]
[1726008413901,11.31,135.93,135.88,3.6794]
[1726008414107,11.31,135.95,135.88,14.9894]
[1726008415605,11.31,135.93,135.87,11.31]
[1726008416000,11.31,135.92,135.87,3.6796]
[1726008416810,11.31,135.92,135.86,14.9899]
[1726008418611,11.31,135.92,135.87,3.6798]
[1726008419511,11.31,135.92,135.86,14.9899]
[1726008422312,11.31,135.92,135.86,11.31]
[1726008423517,11.31,135.9,135.85,3.64051622]
[1726008423718,11.31,135.9,135.82,2.7081]
[1726008423917,11.31,135.9,135.84,11.31]
[1726008424118,11.31,135.9,135.84,15.01417834]
[1726008425215,11.31,135.9,135.85,3.6801]
[1726008425624,11.31,135.9,135.85,11.31]
[1726008425924,4.0613,135.92,135.85,11.31]
[1726008425925,15.3713,135.92,135.85,11.31]
[1726008426622,15.3713,135.92,135.86,3.6799]
[1726008431218,11.31,135.91,135.85,11.31]
[1726008432231,11.31,135.91,135.86,3.68]
[1726008438934,4.0613,135.92,135.86,3.68]
[1726008439240,11.31,135.91,135.86,3.68]
[1726008450043,4.0613,135.92,135.86,3.68]
[1726008450239,11.31,135.91,135.86,3.68]
[1726008459150,4.0613,135.92,135.86,3.68]
[1726008459346,15.82675174,135.97,135.88,11.31]
[1726008459552,11.31,135.95,135.89,11.31]
[1726008459959,11.31,135.95,135.89,14.9891]
[1726008461062,11.31,135.95,135.9,3.6789]
[1726008461651,11.31,135.95,135.91,3.6787]
[1726008462254,11.31,135.95,135.92,3.6782]
[1726008462963,11.31,135.95,135.91,3.6785]
[1726008463853,11.31,135.95,135.9,3.6788]
[1726008464067,11.31,135.94,135.9,3.6788]
[1726008466160,11.31,135.94,135.91,3.6786]
[1726008466358,11.31,135.95,135.91,3.6786]
[1726008472169,11.31,135.94,135.91,3.6786]
[1726008472962,11.31,135.94,135.9,3.6788]
[1726008477866,11.31,135.93,135.86,2.7869]
[1726008478071,11.31,135.93,135.87,11.31]
[1726008478967,11.31,135.93,135.88,3.6794]
[1726008479164,11.31,135.93,135.85,1.3117]
[1726008479363,11.31,135.92,135.86,3.6798]
[1726008479563,13.955,135.92,135.86,3.6798]
[1726008480165,11.31,135.89,135.85,3.6802]
[1726008480377,11.31,135.89,135.83,11.31]
[1726008480675,11.31,135.89,135.83,15.07315595]
[1726008480861,11.31,135.89,135.84,3.6804]
[1726008481071,11.31,135.88,135.81,1.3129]
[1726008481372,11.31,135.88,135.82,11.31]
[1726008481874,11.31,135.88,135.82,14.9909]
[1726008482269,11.31,135.88,135.82,11.31]
[1726008483377,11.31,135.88,135.82,14.9909]
[1726008483974,11.31,135.88,135.83,3.6808]
[1726008484168,11.31,135.89,135.83,14.9908]
[1726008486276,11.31,135.88,135.82,3.681]
[1726008486469,11.31,135.88,135.82,14.991]
[1726008487173,11.31,135.88,135.82,3.681]
[1726008487366,11.31,135.88,135.82,14.991]
[1726008491176,11.31,135.88,135.82,3.681]
[1726008491373,11.31,135.88,135.82,14.991]
[1726008495080,11.31,135.87,135.82,14.991]
[1726008496183,11.31,135.87,135.82,11.31]
[1726008496484,11.31,135.84,135.77,1.4077]
[1726008496672,11.31,135.84,135.79,3.6819]
[1726008497279,11.31,135.84,135.78,3.6821]
[1726008500584,1.2951,135.85,135.78,3.6821]
[1726008500784,11.31,135.84,135.78,3.6821]
[1726008503784,11.31,135.84,135.79,3.6819]
[1726008505484,11.31,135.84,135.75,1.3501]
[1726008505688,11.31,135.81,135.75,12.6601]
[1726008506278,2.7003,135.85,135.77,11.31]
[1726008506485,11.31,135.83,135.77,11.31]
[1726008508788,11.31,135.82,135.77,11.31]
[1726008509186,11.31,135.82,135.75,1.3501]
[1726008509391,11.31,135.82,135.75,12.6601]
[1726008510200,11.31,135.8,135.72,1.4072]
[1726008510390,11.31,135.8,135.73,15.00963736]
[1726008510789,11.31,135.8,135.72,1.4072]
[1726008510985,11.31,135.8,135.73,11.31]
[1726008511393,11.31,135.8,135.73,15.03301624]
[1726008512284,11.31,135.8,135.73,11.31]
[1726008512894,11.31,135.8,135.73,3.71307248]
[1726008513094,11.31,135.8,135.74,11.31]
[1726008513289,11.31,135.8,135.74,14.90153767]
[1726008516806,1.2714,135.81,135.76,11.31]
[1726008517699,11.31,135.82,135.76,14.9926]
[1726008518501,11.31,135.82,135.77,3.6824]
[1726008518701,11.31,135.82,135.77,14.9924]
[1726008519207,11.31,135.83,135.77,14.9924]
[1726008521903,11.31,135.83,135.78,3.6821]
[1726008523210,11.31,135.82,135.78,3.6821]
[1726008524411,4.0225,135.85,135.79,3.6818]
[1726008524599,11.31,135.84,135.79,3.6818]
[1726008536116,11.31,135.84,135.8,3.6816]
[1726008540309,11.31,135.81,135.78,3.6819]
[1726008541211,11.31,135.81,135.77,3.6823]
[1726008544117,4.0225,135.85,135.78,14.992]
[1726008544315,11.31,135.84,135.78,14.992]
[1726008550731,11.31,135.84,135.79,3.6818]
[1726008553432,11.31,135.82,135.79,3.6818]
[1726008557136,11.31,135.82,135.78,3.682]
[1726008558038,11.31,135.84,135.78,11.31]
[1726008558540,11.31,135.84,135.79,3.6818]
[1726008564344,11.31,135.83,135.79,3.6818]
[1726008565848,4.0225,135.85,135.76,11.31]
[1726008565849,11.31,135.81,135.76,11.31]
[1726008566050,11.31,135.81,135.74,14.90153767]
[1726008566443,11.31,135.81,135.76,3.6826]
[1726008567646,4.0225,135.85,135.76,3.6826]
[1726008567943,4.0225,135.85,135.79,11.31]
[1726008568144,116.39413017,135.87,135.82,11.31]
[1726008568544,116.39413017,135.87,135.83,11.31]
[1726008568748,4.0047,135.92,135.83,11.31]
[1726008568946,11.31,135.9,135.83,11.31]
[1726008569145,11.31,135.9,135.83,14.9907]
[1726008569340,11.31,135.9,135.83,18.68870485]
[1726008572345,11.31,135.88,135.82,14.991]